bitfinex-derivatives/quotes_BTCF0:USTF0_20240903
["timestamp","ask_amount","ask_price","bid_price","bid_amount"]
[1725403471675,2.51307343,57927.0,57926.0,7e-08]
[1725403472583,0.259023,57918.0,57917.0,0.004]
[1725403472788,0.259029,57917.0,57916.0,0.0481]
[1725403472978,0.68862437,57917.0,57916.0,0.0481]
[1725403473173,0.68822437,57917.0,57916.0,0.0481]
[1725403473573,1.04902437,57917.0,57916.0,0.0481]
[1725403474069,0.68822437,57917.0,57916.0,0.0481]
[1725403474268,1.09902437,57917.0,57916.0,0.0481]
[1725403474483,1.19902437,57917.0,57916.0,0.0481]
[1725403474978,1.21102437,57917.0,57916.0,0.0491]
[1725403476079,1.21102437,57917.0,57916.0,0.001]
[1725403476284,0.259056,57911.0,57909.0,0.0496]
[1725403476581,0.916608,57911.0,57909.0,0.0496]
[1725403477477,0.928608,57911.0,57910.0,0.0489]
[1725403478479,0.742256,57911.0,57910.0,0.0489]
[1725403478688,0.772256,57911.0,57910.0,0.0489]
[1725403480082,0.79595729,57911.0,57910.0,0.0489]
[1725403480287,0.73595729,57911.0,57910.0,0.0489]
[1725403480487,0.79595729,57911.0,57910.0,0.0489]
[1725403481387,0.54960529,57911.0,57910.0,0.0489]
[1725403481689,0.64960529,57911.0,57910.0,0.0489]
[1725403488787,0.46325329,57911.0,57910.0,0.135253]
[1725403494889,0.46325329,57911.0,57910.0,0.134253]
[1725403495094,0.46325329,57911.0,57910.0,0.135253]
[1725403496887,0.45125329,57911.0,57910.0,0.134253]
[1725403497091,0.46325329,57911.0,57910.0,0.135253]
[1725403500999,0.3732,57911.0,57910.0,1.59492551]
[1725403501196,0.42453161,57911.0,57910.0,1.525999]
[1725403501589,0.42453161,57911.0,57910.0,1.61227117]
[1725403501900,0.42453161,57911.0,57910.0,1.51227117]
[1725403502092,0.42453161,57911.0,57910.0,0.407959]
[1725403502493,0.41253161,57911.0,57910.0,0.406959]
[1725403502695,0.42453161,57911.0,57910.0,0.407959]
[1725403503295,0.42453161,57911.0,57910.0,0.406959]
[1725403503296,0.41253161,57911.0,57910.0,0.406959]
[1725403503497,0.42453161,57911.0,57910.0,0.407959]
[1725403507500,0.42453161,57911.0,57910.0,0.321606]
[1725403507700,0.59723561,57911.0,57910.0,0.06997263]
[1725403507892,0.64855287,57911.0,57910.0,0.001]
[1725403508094,0.95803561,57911.0,57910.0,0.001]
[1725403509402,0.87527929,57911.0,57910.0,0.001]
[1725403510998,0.89527929,57911.0,57910.0,0.001]
[1725403511196,0.96373974,57911.0,57910.0,0.001]
[1725403511502,0.94373974,57911.0,57910.0,0.001]
[1725403511716,0.87527929,57911.0,57910.0,0.001]
[1725403512007,0.97527929,57911.0,57910.0,0.001]
[1725403512199,0.92394768,57911.0,57910.0,0.001]
[1725403513209,1.12029968,57911.0,57910.0,0.001]
[1725403513397,0.92394768,57911.0,57910.0,0.001]
[1725403513600,1.01029968,57911.0,57910.0,0.001]
[1725403513897,1.07876013,57911.0,57910.0,0.001]
[1725403514099,1.04029968,57911.0,57910.0,0.001]
[1725403517305,0.91029968,57911.0,57910.0,0.001]
[1725403517502,1.01029968,57911.0,57910.0,0.001]
[1725403518714,0.64949968,57911.0,57910.0,0.001]
[1725403519809,0.28869968,57911.0,57910.0,0.001]
[1725403520012,0.64949968,57911.0,57910.0,0.001]
[1725403524919,0.54949968,57911.0,57910.0,0.001]
[1725403525122,0.64949968,57911.0,57910.0,0.001]
[1725403525721,0.34869968,57911.0,57910.0,0.001]
[1725403525926,0.70949968,57911.0,57910.0,0.001]
[1725403528013,0.77795356,57911.0,57910.0,0.001]
[1725403528217,0.70949968,57911.0,57910.0,0.001]
[1725403528513,0.62314768,57911.0,57910.0,0.001]
[1725403533821,0.37679568,57911.0,57910.0,0.087353]
[1725403534018,0.37679568,57911.0,57910.0,0.34271382]
[1725403534019,0.42453363,57911.0,57910.0,0.34271382]
[1725403534214,0.42453363,57911.0,57910.0,0.273706]
[1725403535511,0.42453363,57911.0,57910.0,1.6096682]
[1725403536424,0.06845388,57915.0,57914.0,0.172694]
[1725403536619,0.0044,57918.0,57914.0,0.172694]
[1725403536620,0.0004,57918.0,57917.0,0.172686]
[1725403536817,0.0855746,57922.0,57921.0,0.172674]
[1725403537019,0.0855746,57922.0,57921.0,1.2834032]
[1725403537218,0.0855746,57922.0,57921.0,1.8830032]
[1725403538122,0.00025907,57923.0,57922.0,0.17267]
[1725403538316,0.00025907,57923.0,57922.0,0.8225592]
[1725403538520,0.05131825,57928.0,57927.0,0.086328]
[1725403538732,0.05131825,57928.0,57927.0,0.704608]
[1725403538927,0.05131825,57928.0,57927.0,1.304608]
[1725403540129,0.05131825,57928.0,57927.0,1.444608]
[1725403541126,0.05131825,57928.0,57927.0,1.445608]
[1725403541317,0.008,57932.0,57931.0,0.086322]
[1725403541523,0.00025907,57933.0,57932.0,0.086321]
[1725403541724,0.00025907,57933.0,57932.0,0.134721]
[1725403541930,0.086321,57932.0,57931.0,0.0004]
[1725403542131,0.447521,57932.0,57931.0,0.0004]
[1725403543530,0.447521,57932.0,57931.0,0.0014]
[1725403558239,0.447521,57932.0,57931.0,0.087722]
[1725403559139,0.687521,57932.0,57931.0,0.087722]
[1725403560538,0.687521,57932.0,57931.0,0.0014]
[1725403560744,0.773842,57932.0,57931.0,0.0014]
[1725403561053,0.930163,57932.0,57931.0,0.0014]
[1725403561349,0.930163,57932.0,57923.0,0.004]
[1725403561350,0.172664,57924.0,57923.0,0.004]
[1725403561545,0.172668,57923.0,57922.0,0.00025907]
[1725403561742,0.265868,57923.0,57922.0,0.00025907]
[1725403561943,0.405868,57923.0,57922.0,0.00025907]
[1725403562647,0.404868,57923.0,57922.0,0.00025907]
[1725403562840,0.364868,57923.0,57922.0,0.00025907]
[1725403563844,0.41608068,57923.0,57922.0,0.00025907]
[1725403564047,0.55608068,57923.0,57922.0,0.00025907]
[1725403564450,0.55708068,57923.0,57922.0,0.00125907]
[1725403564643,0.555368,57923.0,57922.0,0.00125907]
[1725403565854,0.086734,57923.0,57922.0,0.24125907]
[1725403566243,0.086734,57923.0,57922.0,0.32759407]
[1725403566446,0.086734,57923.0,57922.0,0.08759407]
[1725403568748,0.09040018,57923.0,57922.0,0.08759407]
[1725403572252,0.09040018,57923.0,57922.0,0.32759407]
[1725403572452,0.086734,57923.0,57922.0,0.32759407]
[1725403574143,0.086734,57923.0,57922.0,0.39652749]
[1725403575647,0.0014,57923.0,57922.0,1.53184907]
[1725403576952,0.0014,57923.0,57922.0,1.61818407]
[1725403579057,0.0014,57923.0,57922.0,1.74971711]
[1725403581152,0.0014,57923.0,57922.0,1.83589222]
[1725403581653,0.0014,57923.0,57922.0,1.74971711]
[1725403582053,0.0014,57923.0,57922.0,1.61818407]
[1725403582261,0.0014,57923.0,57922.0,1.74971754]
[1725403583851,0.0014,57923.0,57922.0,1.70435728]
[1725403584249,0.0014,57923.0,57922.0,1.8358931]
[1725403584451,0.0014,57923.0,57922.0,1.70435728]
[1725403584852,0.0014,57923.0,57922.0,1.83589306]
[1725403585253,0.13340346,57931.0,57930.0,0.086324]
[1725403585459,0.05128046,57931.0,57930.0,0.086324]
[1725403585961,0.05128046,57931.0,57930.0,0.186324]
[1725403586154,0.05128046,57931.0,57930.0,0.272648]
[1725403586349,0.41208494,57932.0,57931.0,0.172644]
[1725403587463,0.41308494,57932.0,57931.0,0.173644]
[1725403588763,0.42708494,57932.0,57931.0,0.173644]
[1725403589362,0.06628494,57932.0,57931.0,0.173644]
[1725403589664,0.42708494,57932.0,57931.0,0.173644]
[1725403591063,0.462121,57932.0,57931.0,0.087322]
[1725403591262,0.548442,57932.0,57931.0,0.001]
[1725403591460,0.626042,57932.0,57931.0,0.001]
[1725403594064,0.712363,57932.0,57931.0,0.001]
[1725403596667,1.073163,57932.0,57931.0,0.001]
[1725403597664,0.351563,57932.0,57931.0,0.001]
[1725403597870,1.043163,57932.0,57931.0,0.001]
[1725403598066,1.143163,57932.0,57931.0,0.001]
[1725403598269,1.193163,57932.0,57931.0,0.001]
[1725403598860,1.143163,57932.0,57931.0,0.001]
[1725403599072,0.421563,57932.0,57931.0,0.001]
[1725403599287,1.143163,57932.0,57931.0,0.001]
[1725403599682,0.421563,57932.0,57931.0,0.001]
[1725403599884,1.143163,57932.0,57931.0,0.001]
[1725403602379,1.193163,57932.0,57931.0,0.001]
[1725403602579,1.143163,57932.0,57931.0,0.001]
[1725403604287,1.193163,57932.0,57931.0,0.001]
[1725403605679,1.143163,57932.0,57931.0,0.001]
[1725403606788,1.173163,57932.0,57931.0,0.001]
[1725403607092,1.143163,57932.0,57931.0,0.001]
[1725403610591,1.095563,57932.0,57931.0,0.001]
[1725403614488,1.145563,57932.0,57931.0,0.001]
[1725403616998,1.145563,57932.0,57931.0,0.05277069]
[1725403617199,1.145563,57932.0,57931.0,0.001]
[1725403617892,1.145563,57932.0,57931.0,0.05277472]
[1725403618088,1.145563,57932.0,57931.0,0.001]
[1725403618490,1.145563,57932.0,57931.0,0.05277929]
[1725403618889,1.145563,57932.0,57931.0,0.001]
[1725403619091,1.2311145,57932.0,57931.0,0.001]
[1725403619597,1.145563,57932.0,57931.0,0.001]
[1725403619798,1.23118866,57932.0,57931.0,0.05278069]
[1725403620695,1.23118866,57932.0,57931.0,0.001]
[1725403620898,1.145563,57932.0,57931.0,0.001]
[1725403621290,1.23118866,57932.0,57931.0,0.001]
[1725403621501,1.18118866,57932.0,57931.0,0.001]
[1725403621799,1.095563,57932.0,57931.0,0.001]
[1725403621998,1.18118866,57932.0,57931.0,0.001]
[1725403622300,1.145563,57932.0,57931.0,0.001]
[1725403625103,0.086329,57926.0,57922.0,0.07331748]
[1725403625405,0.720202,57923.0,57922.0,0.00025907]
[1725403625703,0.790202,57923.0,57922.0,0.00025907]
[1725403625901,0.81819563,57923.0,57922.0,0.00025907]
[1725403626294,0.790202,57923.0,57922.0,0.00025907]
[1725403626603,0.804202,57923.0,57922.0,0.00125907]
[1725403626804,0.734202,57923.0,57922.0,0.00125907]
[1725403627103,0.81969576,57923.0,57922.0,0.00125907]
[1725403627306,0.81969576,57923.0,57922.0,0.00225907]
[1725403627803,0.73336176,57923.0,57922.0,0.00225907]
[1725403628306,0.73336176,57923.0,57922.0,0.00125907]
[1725403628500,0.73436176,57923.0,57922.0,0.00225907]
[1725403629003,0.73803305,57923.0,57922.0,0.00225907]
[1725403632112,0.53452304,57923.0,57922.0,0.00225907]
[1725403632491,0.53452304,57923.0,57922.0,0.05045907]
[1725403632897,0.53452304,57923.0,57922.0,0.13679407]
[1725403634502,0.53452304,57923.0,57922.0,0.08859407]
[1725403637111,0.46620529,57923.0,57922.0,0.08859407]
[1725403643715,0.46620529,57923.0,57922.0,0.14030467]
[1725403643910,0.46620529,57923.0,57922.0,0.08859407]
[1725403644815,0.46620529,57923.0,57922.0,0.00225907]
[1725403646514,0.55253929,57923.0,57922.0,0.00225907]
[1725403647807,0.53456618,57923.0,57922.0,0.00225907]
[1725403648020,0.46620529,57923.0,57922.0,0.08859407]
[1725403652721,0.10540529,57923.0,57922.0,0.08859407]
[1725403652922,0.101734,57923.0,57922.0,0.08859407]
[1725403653119,0.0154,57923.0,57922.0,0.32859407]
[1725403653318,0.0154,57923.0,57922.0,0.41492907]
[1725403657224,0.0154,57923.0,57922.0,0.4185601]
[1725403657928,0.0154,57923.0,57922.0,0.2785601]
[1725403665828,0.188068,57923.0,57922.0,0.08859407]
[1725403666430,0.101734,57923.0,57922.0,0.08859407]
[1725403667530,0.462534,57923.0,57922.0,0.08859407]
[1725403670127,0.462534,57923.0,57922.0,0.00225907]
[1725403674131,0.51386264,57923.0,57922.0,0.00225907]
[1725403674837,0.462534,57923.0,57922.0,0.07123742]
[1725403675234,0.51386264,57923.0,57922.0,0.07123742]
[1725403676137,0.51386264,57923.0,57922.0,0.00225907]
[1725403676330,0.51386264,57923.0,57922.0,0.0712608]
[1725403677335,0.462534,57923.0,57922.0,0.00225907]
[1725403677836,0.51390364,57923.0,57922.0,0.00225907]
[1725403678222,0.462534,57923.0,57922.0,0.00225907]
[1725403679030,0.51390766,57923.0,57922.0,0.00225907]
[1725403679331,0.51390759,57923.0,57922.0,0.00225907]
[1725403679834,0.51390759,57923.0,57922.0,0.08859407]
[1725403680137,0.15310759,57923.0,57922.0,0.08859407]
[1725403680331,0.101734,57923.0,57922.0,0.08859407]
[1725403680530,0.101734,57923.0,57922.0,0.18859407]
[1725403680531,0.0154,57923.0,57922.0,0.18859407]
[1725403681030,0.0154,57923.0,57922.0,0.36116636]
[1725403681235,0.0154,57923.0,57922.0,0.49271072]
[1725403681632,0.0154,57923.0,57922.0,0.49280843]
[1725403681826,0.0154,57923.0,57922.0,1.61072843]
[1725403688648,0.0154,57923.0,57922.0,1.01072843]
[1725403689736,0.0154,57923.0,57922.0,1.02072843]
[1725403689945,0.0154,57923.0,57922.0,0.50280843]
[1725403690136,0.0154,57923.0,57922.0,0.37126407]
[1725403706855,0.0154,57923.0,57922.0,0.45759907]
[1725403707046,0.05135147,57930.0,57929.0,0.258975]
[1725403707247,0.05135147,57930.0,57929.0,0.359375]
[1725403707446,0.05135147,57930.0,57929.0,0.887255]
[1725403708352,0.05135147,57930.0,57929.0,0.888255]
[1725403708549,0.06535147,57930.0,57929.0,0.888255]
[1725403708748,0.06635147,57930.0,57929.0,0.889255]
[1725403710052,0.06635147,57930.0,57929.0,0.371375]
[1725403710553,0.06635147,57930.0,57929.0,0.3749326]
[1725403715163,0.015,57930.0,57929.0,0.50645095]
[1725403716962,0.015,57930.0,57929.0,0.50645051]
[1725403718755,0.015,57930.0,57929.0,0.40645051]
[1725403719064,0.101324,57930.0,57929.0,0.18849616]
[1725403719264,0.101324,57930.0,57929.0,0.1022826]
[1725403719656,0.101324,57930.0,57929.0,0.0124]
[1725403719657,0.273972,57930.0,57929.0,0.0124]
[1725403720165,1.391852,57930.0,57929.0,0.0124]
[1725403720366,1.391852,57930.0,57929.0,0.06413296]
[1725403721452,1.491852,57930.0,57929.0,0.06413296]
[1725403722261,1.49547509,57930.0,57929.0,0.06413296]
[1725403723769,1.49547509,57930.0,57929.0,0.0124]
[1725403724271,1.56390869,57930.0,57929.0,0.0124]
[1725403724464,1.49547509,57930.0,57929.0,0.0124]
[1725403726273,1.56385155,57930.0,57929.0,0.0124]
[1725403726478,0.96385155,57930.0,57929.0,0.0124]
[1725403726667,0.89547509,57930.0,57929.0,0.0124]
[1725403727371,0.96384062,57930.0,57929.0,0.0124]
[1725403727679,0.89547509,57930.0,57929.0,0.0124]
[1725403729974,0.37759509,57930.0,57929.0,0.0124]
[1725403734467,0.48759509,57930.0,57929.0,0.0124]
[1725403735169,0.37759509,57930.0,57929.0,0.0124]
[1725403738178,0.27759509,57930.0,57929.0,0.0124]
[1725403738478,0.37759509,57930.0,57929.0,0.0124]
[1725403739477,0.29127109,57930.0,57929.0,0.0124]
[1725403739677,0.19127109,57930.0,57929.0,0.0124]
[1725403741780,0.29127109,57930.0,57929.0,0.0124]
[1725403742583,0.29127109,57930.0,57929.0,0.098725]
[1725403742779,0.37759509,57930.0,57929.0,0.0124]
[1725403742986,0.13494709,57930.0,57929.0,0.0124]
[1725403743185,0.34127109,57930.0,57929.0,0.0124]
[1725403743683,0.29127109,57930.0,57929.0,0.0124]
[1725403748294,0.29127109,57930.0,57929.0,0.06413296]
[1725403749299,0.29127109,57930.0,57929.0,0.0124]
[1725403751795,1.01287109,57930.0,57929.0,0.0124]
[1725403752704,1.01287109,57930.0,57929.0,0.06419446]
[1725403755791,1.01287109,57930.0,57929.0,0.0124]
[1725403757099,0.29127109,57930.0,57929.0,0.0124]
[1725403757297,1.01287109,57930.0,57929.0,0.0124]
[1725403759003,1.01287109,57930.0,57929.0,0.06419903]
[1725403759405,1.06287109,57930.0,57929.0,0.06419903]
[1725403760412,1.14919509,57930.0,57929.0,0.06419903]
[1725403760706,1.19719509,57930.0,57929.0,0.06419903]
[1725403760896,1.28266464,57930.0,57929.0,0.06419903]
[1725403764106,0.56106464,57930.0,57929.0,0.06419903]
[1725403764303,1.28266464,57930.0,57929.0,0.06419903]
[1725403764806,1.19719509,57930.0,57929.0,0.06419903]
[1725403767602,1.14719509,57930.0,57929.0,0.06419903]
[1725403768008,0.82654709,57930.0,57929.0,0.06419903]
[1725403768200,0.82654709,57930.0,57929.0,0.1124]
[1725403768694,0.82654709,57930.0,57929.0,0.18146411]
[1725403768907,0.82654709,57930.0,57929.0,0.08146411]
[1725403769110,0.82654709,57930.0,57929.0,0.0124]
[1725403769910,0.82654709,57930.0,57929.0,0.098725]
[1725403770602,0.82654709,57930.0,57929.0,0.16778911]
[1725403770798,0.89494546,57930.0,57929.0,0.16778911]
[1725403772002,0.82654709,57930.0,57929.0,0.098725]
[1725403772202,0.89494186,57930.0,57929.0,0.16778911]
[1725403773308,0.82654709,57930.0,57929.0,0.16778911]
[1725403773611,0.7366,57930.0,57929.0,0.098725]
[1725403774205,0.7366,57930.0,57929.0,0.10235025]
[1725403774513,0.7366,57930.0,57929.0,0.18867525]
[1725403778406,0.7366,57930.0,57929.0,0.25769281]
[1725403778614,0.3758,57930.0,57929.0,0.18867525]
[1725403779002,0.462124,57930.0,57929.0,0.098725]
[1725403788404,0.462124,57930.0,57929.0,0.16774314]
[1725403788609,0.462124,57930.0,57929.0,0.098725]
[1725403790512,0.462124,57930.0,57929.0,0.16774314]
[1725403790714,0.462124,57930.0,57929.0,0.098725]
[1725403792215,0.53056086,57930.0,57929.0,0.098725]
[1725403793326,0.53056086,57930.0,57929.0,0.1677612]
[1725403795315,0.53056086,57930.0,57929.0,0.098725]
[1725403795820,0.53058216,57930.0,57929.0,0.098725]
[1725403796020,0.462124,57930.0,57929.0,0.098725]
[1725403798123,0.462124,57930.0,57929.0,0.16779695]
[1725403799016,0.462124,57930.0,57929.0,0.16779816]
[1725403799213,0.548448,57930.0,57929.0,0.16779816]
[1725403799415,0.548448,57930.0,57929.0,0.098725]
[1725403800225,0.548448,57930.0,57929.0,0.0124]
[1725403800427,0.17265,57929.0,57928.0,0.05180839]
[1725403800613,0.39305,57929.0,57928.0,0.05180839]
[1725403800816,0.172652,57928.0,57927.0,0.05180839]
[1725403801020,0.172652,57928.0,57926.0,0.06907316]
[1725403801021,0.206726,57928.0,57926.0,0.06907316]
[1725403801221,0.533456,57927.0,57926.0,0.06907316]
[1725403801425,0.663856,57927.0,57926.0,0.06907316]
[1725403801625,0.662856,57927.0,57926.0,0.06907316]
[1725403801844,0.662456,57927.0,57926.0,0.06907316]
[1725403802325,0.661456,57927.0,57926.0,0.07007316]
[1725403802716,0.661456,57927.0,57926.0,0.001]
[1725403802913,0.661456,57927.0,57924.0,0.06904792]
[1725403802914,0.171662,57925.0,57924.0,0.06904792]
[1725403803133,0.271062,57925.0,57924.0,0.06904792]
[1725403804528,0.271062,57925.0,57922.0,0.00025907]
[1725403804529,0.086334,57923.0,57922.0,0.00025907]
[1725403804720,0.085734,57923.0,57922.0,0.00025907]
[1725403805423,0.084734,57923.0,57922.0,0.00025907]
[1725403805826,0.088734,57923.0,57922.0,0.00125907]
[1725403806029,0.100734,57923.0,57922.0,0.08859407]
[1725403807426,0.273402,57923.0,57922.0,0.00225907]
[1725403807628,0.303402,57923.0,57922.0,0.00225907]
[1725403807823,0.348902,57923.0,57922.0,0.05403651]
[1725403808023,0.348902,57923.0,57922.0,0.00225907]
[1725403809832,0.35247644,57923.0,57922.0,0.00225907]
[1725403814924,0.32247644,57923.0,57922.0,0.00225907]
[1725403817627,0.39247644,57923.0,57922.0,0.00225907]
[1725403818032,0.49247644,57923.0,57922.0,0.00225907]
[1725403826345,0.26064244,57923.0,57922.0,0.00225907]
[1725403826540,0.0164,57923.0,57922.0,0.18859407]
[1725403827042,0.0164,57923.0,57922.0,0.33319407]
[1725403831843,0.0164,57923.0,57922.0,0.72359706]
[1725403832155,0.0164,57923.0,57922.0,0.72362052]
[1725403833252,0.0164,57923.0,57922.0,0.59207763]
[1725403833549,0.0164,57923.0,57922.0,0.72361729]
[1725403834063,0.0164,57923.0,57922.0,0.59207763]
[1725403834444,0.0164,57923.0,57922.0,0.5095373]
[1725403841250,0.0044,57923.0,57922.0,0.5085373]
[1725403841462,0.0154,57923.0,57922.0,0.5095373]
[1725403851255,0.0154,57923.0,57922.0,0.59575086]
[1725403851655,0.0154,57923.0,57922.0,0.72729322]
[1725403852272,0.0154,57923.0,57922.0,0.72731927]
[1725403852471,0.0154,57923.0,57922.0,0.64107966]
[1725403852855,0.0154,57923.0,57922.0,0.72731924]
[1725403853266,0.0154,57923.0,57922.0,0.64107966]
[1725403854764,0.0154,57923.0,57922.0,0.6410782]
[1725403859280,0.0154,57923.0,57922.0,0.5458782]
[1725403861266,0.0154,57923.0,57922.0,0.4595432]
[1725403861467,0.60031101,57923.0,57922.0,0.13379997]
[1725403861772,0.715102,57923.0,57922.0,0.00225907]
[1725403862173,0.80069526,57923.0,57922.0,0.00225907]
[1725403862472,0.715102,57923.0,57922.0,0.00225907]
[1725403862670,0.172686,57917.0,57916.0,0.10348504]
[1725403862883,0.850229,57917.0,57916.0,0.10048504]
[1725403863072,1.968229,57917.0,57916.0,0.10048504]
[1725403863771,1.968229,57917.0,57916.0,0.10148504]
[1725403863772,1.972229,57917.0,57916.0,0.10148504]
[1725403864072,0.1727,57912.0,57911.0,0.08634665]
[1725403864276,0.7535,57912.0,57911.0,0.08634665]
[1725403864480,1.87194,57912.0,57911.0,0.08634665]
[1725403864676,1.91724,57912.0,57911.0,0.08634665]
[1725403864978,1.91624,57912.0,57911.0,0.08634665]
[1725403865680,1.86824,57912.0,57911.0,0.08734665]
[1725403866276,1.88024,57912.0,57911.0,0.08834665]
[1725403866779,1.88024,57912.0,57911.0,0.002]
[1725403866983,1.82024,57912.0,57911.0,0.002]
[1725403867183,1.86804,57912.0,57911.0,0.002]
[1725403867579,1.91804,57912.0,57911.0,0.002]
[1725403868481,2.00439,57912.0,57911.0,0.002]
[1725403869783,2.00439,57912.0,57902.0,0.07292274]
[1725403869784,0.259092,57903.0,57902.0,0.07292274]
[1725403869980,0.789892,57903.0,57902.0,0.06892274]
[1725403870176,1.908012,57903.0,57902.0,0.06892274]
[1725403870582,1.91644577,57903.0,57902.0,0.06892274]
[1725403870882,1.84724577,57903.0,57902.0,0.06892274]
[1725403871786,1.95124577,57903.0,57902.0,0.06892274]
[1725403871987,1.95824577,57903.0,57902.0,0.06892274]
[1725403872681,1.96424577,57903.0,57902.0,0.06892274]
[1725403873188,1.955812,57903.0,57902.0,0.06892274]
[1725403876488,1.95945334,57903.0,57902.0,0.06892274]
[1725403879295,0.65133334,57903.0,57902.0,0.06892274]
[1725403879596,0.80133334,57903.0,57902.0,0.06892274]
[1725403881691,1.91945334,57903.0,57902.0,0.06892274]
[1725403882283,0.172754,57894.0,57893.0,0.004]
[1725403882490,0.172754,57894.0,57889.0,0.135684]
[1725403882491,0.086382,57891.0,57889.0,0.135684]
[1725403882699,0.086383,57890.0,57889.0,0.135684]
[1725403882996,0.087183,57890.0,57889.0,0.135684]
[1725403883188,0.086383,57890.0,57889.0,0.135684]
[1725403887504,0.086383,57890.0,57889.0,0.13930997]
[1725403887805,0.09003239,57890.0,57889.0,0.13930997]
[1725403888100,0.09003239,57890.0,57889.0,0.23930997]
[1725403889401,0.09003239,57890.0,57889.0,0.29075433]
[1725403889700,0.09003239,57890.0,57889.0,0.23930997]
[1725403891794,0.086383,57890.0,57889.0,0.23930997]
[1725403892001,0.0008,57891.0,57890.0,0.086383]
[1725403892196,0.0008,57891.0,57890.0,0.172766]
[1725403893402,0.0018,57891.0,57890.0,0.172766]
[1725403894700,0.0018,57891.0,57890.0,0.259149]
[1725403895407,0.0018,57891.0,57890.0,0.777349]
[1725403896902,0.0018,57891.0,57890.0,1.377349]
[1725403900599,0.0018,57891.0,57890.0,0.777349]
[1725403901002,0.0018,57891.0,57890.0,0.90895887]
[1725403902805,0.0018,57891.0,57890.0,1.00895887]
[1725403903711,0.0018,57891.0,57890.0,0.92257587]
[1725403903900,0.0018,57891.0,57890.0,0.82257587]
[1725403904205,0.0018,57891.0,57890.0,0.92257587]
[1725403904701,0.0018,57891.0,57890.0,0.40437587]
[1725403906413,0.0018,57891.0,57890.0,0.92257587]
[1725403906603,0.0018,57891.0,57890.0,0.40437587]
[1725403906800,0.0018,57891.0,57890.0,0.92257587]
[1725403907000,0.0018,57891.0,57890.0,0.40437587]
[1725403907208,0.0018,57891.0,57890.0,0.92257587]
[1725403907411,0.0018,57891.0,57890.0,0.92257129]
[1725403911025,0.0018,57891.0,57890.0,0.49075429]
[1725403922415,0.0018,57891.0,57890.0,0.40437129]
[1725403922621,0.0018,57891.0,57890.0,0.30437129]
[1725403925421,0.0018,57891.0,57890.0,0.39075429]
[1725403925726,0.0018,57891.0,57890.0,0.44035429]
[1725403930026,0.0018,57891.0,57890.0,0.54035429]
[1725403932723,0.0018,57891.0,57890.0,0.64388467]
[1725403934225,0.0018,57891.0,57890.0,0.51227938]
[1725403936428,0.0018,57891.0,57890.0,0.769549]
[1725403937729,0.0018,57891.0,57890.0,0.92973135]
[1725403937936,0.0018,57891.0,57890.0,1.06133363]
[1725403938328,0.0018,57891.0,57890.0,0.54035128]
[1725403938530,0.0018,57891.0,57890.0,0.90115128]
[1725403941830,0.0018,57891.0,57890.0,0.54035128]
[1725403942027,0.0018,57891.0,57890.0,0.90115128]
[1725403944034,0.0018,57891.0,57890.0,0.98753428]
[1725403947845,0.0018,57891.0,57890.0,1.14771546]
[1725403949344,1e-06,57891.0,57890.0,2.26591546]
[1725403949546,0.008,57898.0,57897.0,0.259119]
[1725403949847,0.00025907,57899.0,57898.0,0.345484]
[1725403950038,0.00025907,57899.0,57898.0,0.52318628]
[1725403950242,0.0514055,57901.0,57900.0,0.345472]
[1725403950546,0.0514055,57901.0,57900.0,1.0980179]
[1725403950847,0.0514055,57901.0,57900.0,1.6161379]
[1725403950848,5e-07,57901.0,57900.0,1.6161379]
[1725403951147,0.004,57908.0,57907.0,0.259074]
[1725403951346,0.3648,57915.0,57907.0,0.46962058]
[1725403951551,0.00025907,57913.0,57912.0,0.1727]
[1725403951845,0.00025907,57913.0,57912.0,0.25889076]
[1725403952054,0.00025907,57913.0,57912.0,0.34524076]
[1725403952755,0.01425907,57913.0,57912.0,0.44524076]
[1725403952954,0.01425907,57913.0,57912.0,0.80604076]
[1725403953762,0.02825907,57913.0,57912.0,1.32773315]
[1725403953950,0.02825907,57913.0,57912.0,0.80969315]
[1725403956160,0.02825907,57913.0,57912.0,0.72350239]
[1725403956656,0.02825907,57913.0,57912.0,1.84154239]
[1725403957263,0.02825907,57913.0,57912.0,1.84194239]
[1725403958063,0.02825907,57913.0,57912.0,1.92782051]
[1725403961074,0.02825907,57913.0,57912.0,1.97492051]
[1725403962467,0.02825907,57913.0,57912.0,1.87492051]
[1725403962668,0.02825907,57913.0,57912.0,1.97492051]
[1725403963775,0.02825907,57913.0,57912.0,1.61412051]
[1725403964071,0.02825907,57913.0,57912.0,1.37492051]
[1725403964461,0.02825907,57913.0,57912.0,0.36263051]
[1725403966076,0.02825907,57913.0,57912.0,0.17628051]
[1725403966263,0.02825907,57913.0,57912.0,0.27628051]
[1725403967978,0.02825907,57913.0,57912.0,0.19040239]
[1725403970481,0.02825907,57913.0,57912.0,0.55120239]
[1725403971776,0.02825907,57913.0,57912.0,0.63755239]
[1725403975174,0.01625907,57913.0,57912.0,0.63755239]
[1725403975484,0.00325907,57913.0,57912.0,0.63755239]
[1725403975976,0.00225907,57913.0,57912.0,0.63755239]
[1725403976180,0.00825907,57913.0,57912.0,0.63755239]
[1725403977176,0.00825907,57913.0,57912.0,0.76910533]
[1725403980078,0.00825907,57913.0,57912.0,0.87254589]
[1725403980384,0.00825907,57913.0,57912.0,0.40830533]
[1725403980684,0.00825907,57913.0,57912.0,0.22195533]
[1725403981381,0.00825907,57913.0,57912.0,0.3082142]
[1725403981781,0.09660807,57913.0,57912.0,0.17666126]
[1725403982184,0.09660807,57913.0,57912.0,0.30822787]
[1725403982387,0.09660807,57913.0,57912.0,0.22196778]
[1725403982684,0.09860807,57913.0,57912.0,0.22196778]
[1725403982890,0.01225907,57913.0,57912.0,0.22196778]
[1725403983081,0.01425907,57913.0,57912.0,0.22196778]
[1725403983580,0.00925907,57913.0,57912.0,0.22196778]
[1725403983781,0.01925907,57913.0,57912.0,0.22196778]
[1725403984183,0.01025907,57913.0,57912.0,0.22196778]
[1725403984486,0.02125907,57913.0,57912.0,0.22196778]
[1725403984988,0.01025907,57913.0,57912.0,0.22196778]
[1725403985181,0.01925907,57913.0,57912.0,0.22196778]
[1725403985690,0.01125907,57913.0,57912.0,0.22196778]
[1725403985882,0.02125907,57913.0,57912.0,0.22196778]